[Event "CZE-ch Youth G10-G12-G14 2022"]
[Site "Luhacovice"]
[Date "2022.03.17"]
[Round "7.8"]
[White "Rudova Jana"]
[Black "Zadrapova Gabriela"]
[Result "0-1"]
[ECO "C48"]
[WhiteElo "1000"]
[BlackElo "1000"]
[Annotator "NA"]
[PlyCount "70"]
[EventDate "2022.03.12"]
[EventType "swiss"]
[EventCountry "CZE"]
[SourceTitle "playchess.com"]
[Source "ChessBase"]
[SourceQuality "1"]
[TimeControl "40/5400+30:1800+30"]

1. e4 {[%emt 0:00:12]} e5 {[%emt 0:00:06]} 2. Nf3 {[%emt 0:00:45]} Nc6 {[%emt 0:00:30]} 3. Nc3 {[%emt 0:00:26]} Nf6 {[%emt 0:00:32]} 4. Bb5 {[%emt 0:00:54]} Bc5 {[%emt 0:00:37]} 5. O-O {[%emt 0:00:45]} O-O {[%emt 0:00:50]} 6. Bxc6 {[%emt 0:00:30]} bxc6 {[%emt 0:01:01]} 7. Nxe5 {[%emt 0:00:39]} Bd4 {[%emt 0:02:24]} 8. Nf3 {[%emt 0:01:12]} Bc5 {[%emt 0:00:44]} 9. e5 {[%emt 0:00:54]} d5 {[%emt 0:00:38]} 10. exf6 {[%emt 0:02:01]} Qxf6 {[%emt 0:00:58]} 11. d3 {[%emt 0:01:29]} Qg6 {[%emt 0:00:30]} 12. d4 {[%emt 0:00:47]} Bb6 {[%emt 0:00:00]} 13. h3 {[%emt 0:00:29]} Bxh3 {[%emt 0:00:06]} 14. Ng5 {[%emt 0:01:20]} Bf5 {[%emt 0:01:11]} 15. Na4 {[%emt 0:01:28]} Ba5 {[%emt 0:02:05]} 16. g3 {[%emt 0:01:05]} f6 {[%emt 0:00:49]} 17. Nf3 {[%emt 0:01:01]} Bg4 {[%emt 0:00:30]} 18. Bf4 {[%emt 0:03:45]} Qh5 {[%emt 0:00:11]} 19. Kg2 {[%emt 0:02:03]} Bh3+ {[%emt 0:01:41]} 20. Kg1 {[%emt 0:01:25]} Bxf1 {[%emt 0:00:31]} 21. Kxf1 {[%emt 0:00:15]} Rfe8 {[%emt 0:00:32]} 22. Nc5 {[%emt 0:01:25]} Re7 {[%emt 0:00:59]} 23. Nb7 {[%emt 0:02:12]} Bb4 {[%emt 0:00:38]} 24. c3 {[%emt 0:00:49]} Bd6 {[%emt 0:00:33]} 25. Nxd6 {[%emt 0:00:59]} cxd6 {[%emt 0:01:01]} 26. Bxd6 {[%emt 0:00:20]} Re6 {[%emt 0:00:43]} 27. Bc5 {[%emt 0:00:53]} a5 {[%emt 0:00:45]} 28. Qb3 {[%emt 0:03:40]} Rae8 {[%emt 0:00:50]} 29. Kg2 {[%emt 0:01:35]} Re4 {[%emt 0:01:34]} 30. Qb6 {[%emt 0:01:40]} Rg4 {[%emt 0:00:33]} 31. Qxc6 {[%emt 0:00:37]} Rb8 {[%emt 0:01:18]} 32. Qe6+ {[%emt 0:00:42]} Kh8 {[%emt 0:01:27]} 33. Bb6 {[%emt 0:00:00]} Rg6 {[%emt 0:00:44]} 34. Qf7 {[%emt 0:01:14]} Rxg3+ {[%emt 0:00:44]} 35. Kxg3 {[%emt 0:00:27]} Qxf7 {[%emt 0:00:18]} 0-1

[Event "CZE-ch Youth G10-G12-G14 2022"]
[Site "Luhacovice"]
[Date "2022.03.17"]
[Round "7.9"]
[White "Vlckova Linda"]
[Black "Martikanova Amalie"]
[Result "0-1"]
[ECO "C44"]
[WhiteElo "1000"]
[BlackElo "1245"]
[Annotator "NA"]
[PlyCount "102"]
[EventDate "2022.03.12"]
[EventType "swiss"]
[EventCountry "CZE"]
[SourceTitle "playchess.com"]
[Source "ChessBase"]
[SourceQuality "1"]
[TimeControl "40/5400+30:1800+30"]

1. e4 {[%emt 0:00:06]} e5 {[%emt 0:00:08]} 2. Nf3 {[%emt 0:00:10]} Nc6 {[%emt 0:00:23]} 3. d3 {[%emt 0:00:24]} Bc5 {[%emt 0:01:12]} 4. Be3 {[%emt 0:01:11]} Bb6 {[%emt 0:00:42]} 5. d4 {[%emt 0:00:29]} f6 {[%emt 0:01:44]} 6. dxe5 {[%emt 0:01:06]} fxe5 {[%emt 0:01:00]} 7. Bc4 {[%emt 0:00:53]} Nf6 {[%emt 0:01:19]} 8. Ng5 {[%emt 0:00:19]} d5 {[%emt 0:01:41]} 9. exd5 {[%emt 0:00:11]} h6 {[%emt 0:05:52]} 10. d6 {[%emt 0:01:17]} hxg5 {[%emt 0:01:09]} 11. dxc7 {[%emt 0:00:20]} Qxd1+ {[%emt 0:00:49]} 12. Kxd1 {[%emt 0:00:18]} Bxc7 {[%emt 0:00:35]} 13. Nc3 {[%emt 0:00:19]} Bf5 {[%emt 0:01:02]} 14. Bxg5 {[%emt 0:00:50]} O-O-O+ {[%emt 0:00:23]} 15. Bd2 {[%emt 0:00:23]} Ng4 {[%emt 0:01:35]} 16. Rf1 {[%emt 0:00:24]} Rxh2 {[%emt 0:01:09]} 17. Kc1 {[%emt 0:01:21]} Rd4 {[%emt 0:01:22]} 18. Be2 {[%emt 0:01:02]} Rxg2 {[%emt 0:01:28]} 19. Bf3 {[%emt 0:00:34]} Rxf2 {[%emt 0:02:00]} 20. Rxf2 {[%emt 0:01:15]} Nxf2 {[%emt 0:03:07]} 21. Be3 {[%emt 0:00:30]} Nd3+ {[%emt 0:00:30]} 22. Kd2 {[%emt 0:00:30]} Rd7 {[%emt 0:00:30]} 23. cxd3 {[%emt 0:01:00]} Rxd3+ {[%emt 0:00:35]} 24. Ke2 {[%emt 0:00:16]} Nb4 {[%emt 0:02:07]} 25. Be4 {[%emt 0:00:55]} Bxe4 {[%emt 0:04:13]} 26. Nxe4 {[%emt 0:00:11]} Bb6 {[%emt 0:02:09]} 27. Bg5 {[%emt 0:01:08]} Rd4 {[%emt 0:04:10]} 28. Rc1+ {[%emt 0:00:21]} Kb8 {[%emt 0:00:42]} 29. Nd2 {[%emt 0:00:31]} Rg4 {[%emt 0:07:21]} 30. Be7 {[%emt 0:00:40]} Nc6 {[%emt 0:02:09]} 31. Bd6+ {[%emt 0:00:23]} Ka8 {[%emt 0:00:59]} 32. Rh1 {[%emt 0:00:10]} a6 {[%emt 0:02:06]} 33. Nf3 {[%emt 0:00:35]} Re4+ {[%emt 0:03:21]} 34. Kd3 {[%emt 0:00:17]} Re3+ {[%emt 0:00:19]} 35. Kd2 {[%emt 0:00:44]} Rxf3 {[%emt 0:00:43]} 36. Rh8+ {[%emt 0:00:22]} Bd8 {[%emt 0:00:57]} 37. Bc5 {[%emt 0:00:26]} g5 {[%emt 0:00:58]} 38. b4 {[%emt 0:00:36]} g4 {[%emt 0:00:36]} 39. a4 {[%emt 0:00:12]} e4 {[%emt 0:02:28]} 40. b5 {[%emt 0:00:20]} Rd3+ {[%emt 0:01:02]} 41. Ke2 {[%emt 0:30:15]} Ne5 {[%emt 0:33:06]} 42. Rxd8+ {[%emt 0:00:38]} Rxd8 {[%emt 0:00:23]} 43. Bb6 {[%emt 0:00:30]} Rc8 {[%emt 0:00:28]} 44. Bd4 {[%emt 0:00:29]} Nf3 {[%emt 0:01:05]} 45. Be3 {[%emt 0:00:32]} g3 {[%emt 0:00:55]} 46. a5 {[%emt 0:00:13]} Rc3 {[%emt 0:00:42]} 47. Bb6 {[%emt 0:00:32]} g2 {[%emt 0:00:28]} 48. Bf2 {[%emt 0:00:54]} Rc2+ {[%emt 0:00:42]} 49. Ke3 {[%emt 0:00:18]} Rxf2 {[%emt 0:00:27]} 50. Kxf2 {[%emt 0:00:31]} g1=Q+ {[%emt 0:00:14]} 51. Ke2 {[%emt 0:00:14]} Qe1# {[%emt 0:00:17]} 0-1

[Event "CZE-ch Youth G10-G12-G14 2022"]
[Site "Luhacovice"]
[Date "2022.03.17"]
[Round "7.10"]
[White "Topencikova Ellen"]
[Black "Melicharova Veronika"]
[Result "0-1"]
[ECO "C00"]
[WhiteElo "1000"]
[BlackElo "1000"]
[Annotator "NA"]
[PlyCount "142"]
[EventDate "2022.03.12"]
[EventType "swiss"]
[EventCountry "CZE"]
[SourceTitle "playchess.com"]
[Source "ChessBase"]
[SourceQuality "1"]
[TimeControl "40/5400+30:1800+30"]

1. e4 {[%emt 0:00:04]} d5 {[%emt 0:00:10]} 2. Nc3 {[%emt 0:00:25]} e6 {[%emt 0:00:24]} 3. d3 {[%emt 0:00:40]} Bb4 {[%emt 0:00:34]} 4. Be2 {[%emt 0:01:31]} Nc6 {[%emt 0:00:31]} 5. Nf3 {[%emt 0:00:38]} Nf6 {[%emt 0:00:21]} 6. O-O {[%emt 0:00:14]} O-O {[%emt 0:01:19]} 7. Bd2 {[%emt 0:00:48]} Bxc3 {[%emt 0:00:44]} 8. Bxc3 {[%emt 0:00:36]} dxe4 {[%emt 0:00:55]} 9. dxe4 {[%emt 0:00:14]} Nxe4 {[%emt 0:00:19]} 10. Qc1 {[%emt 0:01:55]} Nxc3 {[%emt 0:00:30]} 11. bxc3 {[%emt 0:00:11]} e5 {[%emt 0:00:14]} 12. Rd1 {[%emt 0:00:53]} Qf6 {[%emt 0:00:58]} 13. Qg5 {[%emt 0:02:18]} Qxg5 {[%emt 0:01:07]} 14. Nxg5 {[%emt 0:00:15]} h6 {[%emt 0:00:19]} 15. Nf3 {[%emt 0:01:01]} e4 {[%emt 0:00:33]} 16. Nd4 {[%emt 0:00:35]} Nxd4 {[%emt 0:01:02]} 17. cxd4 {[%emt 0:00:16]} Bf5 {[%emt 0:00:35]} 18. g4 {[%emt 0:01:02]} Bg6 {[%emt 0:00:17]} 19. f4 {[%emt 0:00:44]} exf3 {[%emt 0:00:21]} 20. Bd3 {[%emt 0:01:08]} Bxd3 {[%emt 0:00:32]} 21. Rxd3 {[%emt 0:00:53]} Rfe8 {[%emt 0:00:35]} 22. Rxf3 {[%emt 0:00:29]} Rad8 {[%emt 0:00:11]} 23. Rb1 {[%emt 0:01:06]} b6 {[%emt 0:00:22]} 24. Rbf1 {[%emt 0:02:02]} f6 {[%emt 0:00:39]} 25. c3 {[%emt 0:01:01]} c5 {[%emt 0:00:28]} 26. dxc5 {[%emt 0:00:22]} bxc5 {[%emt 0:00:33]} 27. h4 {[%emt 0:01:00]} Rd2 {[%emt 0:00:48]} 28. R3f2 {[%emt 0:00:30]} Rxf2 {[%emt 0:01:04]} 29. Rxf2 {[%emt 0:00:11]} Re4 {[%emt 0:00:11]} 30. Rg2 {[%emt 0:00:43]} h5 {[%emt 0:00:39]} 31. gxh5 {[%emt 0:00:37]} Rxh4 {[%emt 0:00:12]} 32. Rb2 {[%emt 0:01:22]} Rxh5 {[%emt 0:00:23]} 33. Rb8+ {[%emt 0:00:51]} Kh7 {[%emt 0:00:25]} 34. Rb7 {[%emt 0:00:21]} Rg5+ {[%emt 0:00:13]} 35. Kf1 {[%emt 0:00:17]} Rg3 {[%emt 0:00:19]} 36. Rxa7 {[%emt 0:01:35]} Rxc3 {[%emt 0:00:13]} 37. Ke2 {[%emt 0:00:30]} Kh6 {[%emt 0:00:42]} 38. Kd2 {[%emt 0:00:00]} Rg3 {[%emt 0:00:30]} 39. Rc7 {[%emt 0:00:00]} Rg2+ {[%emt 0:00:16]} 40. Kc3 {[%emt 0:00:15]} Rxa2 {[%emt 0:00:13]} 41. Rxc5 {[%emt 0:30:27]} g5 {[%emt 0:30:22]} 42. Rc6 {[%emt 0:00:14]} g4 {[%emt 0:00:38]} 43. Rxf6+ {[%emt 0:00:14]} Kh5 {[%emt 0:00:14]} 44. Rf1 {[%emt 0:00:55]} g3 {[%emt 0:00:17]} 45. Rf5+ {[%emt 0:00:58]} Kh4 {[%emt 0:00:14]} 46. Rf4+ {[%emt 0:00:23]} Kh3 {[%emt 0:00:21]} 47. Rf6 {[%emt 0:00:25]} g2 {[%emt 0:00:41]} 48. Rh6+ {[%emt 0:00:18]} Kg3 {[%emt 0:00:12]} 49. Rg6+ {[%emt 0:00:15]} Kh2 {[%emt 0:00:30]} 50. Rh6+ {[%emt 0:00:12]} Kg1 {[%emt 0:00:09]} 51. Kb3 {[%emt 0:00:25]} Re2 {[%emt 0:00:21]} 52. Kc3 {[%emt 0:00:34]} Kf1 {[%emt 0:00:17]} 53. Rf6+ {[%emt 0:00:11]} Rf2 {[%emt 0:00:10]} 54. Ra6 {[%emt 0:00:38]} g1=Q {[%emt 0:00:27]} 55. Ra1+ {[%emt 0:00:20]} Kg2 {[%emt 0:00:09]} 56. Rxg1+ {[%emt 0:00:18]} Kxg1 {[%emt 0:00:32]} 57. Kd3 {[%emt 0:00:21]} Rf4 {[%emt 0:00:13]} 58. Ke3 {[%emt 0:02:22]} Rb4 {[%emt 0:00:20]} 59. Kd3 {[%emt 0:01:00]} Kf2 {[%emt 0:00:27]} 60. Kc3 {[%emt 0:00:12]} Rh4 {[%emt 0:00:12]} 61. Kd3 {[%emt 0:00:15]} Rf4 {[%emt 0:00:19]} 62. Kd2 {[%emt 0:00:28]} Rf3 {[%emt 0:00:30]} 63. Kd1 {[%emt 0:00:27]} Rd3+ {[%emt 0:00:17]} 64. Kc2 {[%emt 0:00:17]} Ke2 {[%emt 0:00:14]} 65. Kc1 {[%emt 0:00:10]} Ke3 {[%emt 0:00:15]} 66. Kc2 {[%emt 0:00:14]} Kd4 {[%emt 0:00:10]} 67. Kc1 {[%emt 0:00:28]} Kc3 {[%emt 0:00:16]} 68. Kb1 {[%emt 0:00:19]} Rd2 {[%emt 0:00:24]} 69. Kc1 {[%emt 0:00:16]} Kd3 {[%emt 0:00:17]} 70. Kb1 {[%emt 0:00:12]} Rc2 {[%emt 0:00:05]} 71. Ka1 {[%emt 0:00:12]} Kc3 {[%emt 0:00:03]} 0-1

[Event "CZE-ch Youth G10-G12-G14 2022"]
[Site "Luhacovice"]
[Date "2022.03.17"]
[Round "7.11"]
[White "Kubalova Nikol"]
[Black "Ramseier, Jana S."]
[Result "1/2-1/2"]
[ECO "D02"]
[WhiteElo "1000"]
[BlackElo "2090"]
[Annotator "ChessBase"]
[PlyCount "166"]
[EventDate "2022.03.12"]
[EventType "swiss"]
[EventCountry "CZE"]
[SourceTitle "playchess.com"]
[Source "ChessBase"]
[SourceQuality "1"]
[TimeControl "40/5400+30:1800+30"]

1. d4 {[%emt 0:00:04]} d5 {[%emt 0:01:19]} 2. Bf4 {[%emt 0:00:18]} Nc6 {[%emt 0:00:44]} 3. e3 {[%emt 0:00:29]} e6 {[%emt 0:00:15]} 4. Nf3 {[%emt 0:00:17]} Nf6 {[%emt 0:00:09]} 5. Nbd2 {[%emt 0:00:28]} Bb4 {[%emt 0:00:16]} 6. Bd3 {[%emt 0:00:33]} Bd7 {[%emt 0:00:24]} 7. O-O {[%emt 0:00:29]} O-O {[%emt 0:00:19]} 8. e4 {[%emt 0:00:39]} Be8 {[%emt 0:03:03]} 9. exd5 {[%emt 0:00:17]} Nxd5 {[%emt 0:00:38]} 10. c3 {[%emt 0:01:07]} Nxf4 {[%emt 0:00:29]} 11. Ne5 {[%emt 0:01:25]} Nxd3 {[%emt 0:00:42]} 12. cxb4 {[%emt 0:00:29]} Nxb2 {[%emt 0:00:25]} 13. Qc2 {[%emt 0:01:18]} Nxd4 {[%emt 0:00:48]} 14. Qxb2 {[%emt 0:01:52]} Ne2+ {[%emt 0:01:03]} 15. Kh1 {[%emt 0:00:40]} Nf4 {[%emt 0:00:42]} 16. g3 {[%emt 0:02:02]} Bc6+ {[%emt 0:00:46]} 17. Nxc6 {[%emt 0:00:43]} bxc6 {[%emt 0:00:23]} 18. gxf4 {[%emt 0:01:06]} Qd5+ {[%emt 0:01:23]} 19. Kg1 {[%emt 0:00:40]} Qf5 {[%emt 0:00:21]} 20. Kh1 {[%emt 0:01:31]} Qxf4 {[%emt 0:01:01]} 21. Rg1 {[%emt 0:01:41]} e5 {[%emt 0:01:44]} 22. f3 {[%emt 0:02:21]} Rad8 {[%emt 0:00:26]} 23. Rg4 {[%emt 0:01:28]} Qxd2 {[%emt 0:00:55]} 24. Qxe5 {[%emt 0:01:04]} Qh6 {[%emt 0:00:50]} 25. Rag1 {[%emt 0:00:38]} f6 {[%emt 0:02:05]} 26. Qf5 {[%emt 0:01:16]} g6 {[%emt 0:01:25]} 27. Qe6+ {[%emt 0:01:34]} Rf7 {[%emt 0:00:50]} 28. Qxc6 {[%emt 0:01:19]} Rd6 {[%emt 0:00:25]} 29. Qb7 {[%emt 0:01:37]} c6 {[%emt 0:00:26]} 30. Qa8+ {[%emt 0:01:18]} Qf8 {[%emt 0:00:26]} 31. Qxf8+ {[%emt 0:01:08]} Rxf8 {[%emt 0:00:17]} 32. h3 {[%emt 0:02:43]} h5 {[%emt 0:00:20]} 33. Rxg6+ {[%emt 0:00:21]} Kh8 {[%emt 0:00:31]} 34. Re1 {[%emt 0:01:52]} Rg8 {[%emt 0:00:24]} 35. Rh6+ {[%emt 0:00:15]} Kg7 {[%emt 0:00:29]} 36. Rxh5 {[%emt 0:00:23]} Kf7 {[%emt 0:00:30]} 37. Rf5 {[%emt 0:01:26]} Re6 {[%emt 0:00:13]} 38. Rf1 {[%emt 0:00:30]} Re2 {[%emt 0:00:23]} 39. Rg1 {[%emt 0:00:39]} Rxa2 {[%emt 0:00:32]} 40. Rxg8 {[%emt 0:00:27]} Kxg8 {[%emt 0:00:12]} 41. Rxf6 {[%emt 0:30:20]} a5 {[%emt 0:31:08]} 42. bxa5 {[%emt 0:00:14]} Rxa5 {[%emt 0:00:21]} 43. Rxc6 {[%emt 0:00:24]} Rf5 {[%emt 0:00:32]} 44. Rg6+ {[%emt 0:00:17]} Kf7 {[%emt 0:00:33]} 45. Rg3 {[%emt 0:00:13]} Rh5 {[%emt 0:00:17]} 46. f4 {[%emt 0:00:26]} Kf6 {[%emt 0:01:04]} 47. Rg2 {[%emt 0:00:32]} Rxh3+ {[%emt 0:00:41]} 48. Kg1 {[%emt 0:00:28]} Rf3 {[%emt 0:00:52]} 49. Rg4 {[%emt 0:00:34]} Kf5 {[%emt 0:00:19]} 50. Kg2 {[%emt 0:00:48]} Rd3 {[%emt 0:00:49]} 51. Rg3 {[%emt 0:00:33]} Rd2+ {[%emt 0:00:30]} 52. Kf3 {[%emt 0:00:19]} Rd1 {[%emt 0:00:25]} 53. Rg5+ {[%emt 0:00:34]} Kf6 {[%emt 0:00:33]} 54. Ke2 {[%emt 0:01:23]} Rd4 {[%emt 0:00:32]} 55. Ke3 {[%emt 0:00:20]} Rd7 {[%emt 0:00:36]} 56. Rg3 {[%emt 0:00:49]} Re7+ {[%emt 0:00:20]} 57. Kf2 {[%emt 0:00:09]} Kf5 {[%emt 0:00:42]} 58. Rf3 {[%emt 0:00:13]} Rf7 {[%emt 0:00:57]} 59. Kg3 {[%emt 0:01:49]} Kf6 {[%emt 0:00:17]} 60. f5 {[%emt 0:00:14]} Ke7 {[%emt 0:00:29]} 61. Re3+ {[%emt 0:00:22]} Kf8 {[%emt 0:00:33]} 62. Kg4 {[%emt 0:00:19]} Re7 {[%emt 0:02:39]} 63. Rh3 {[%emt 0:01:21]} Re4+ {[%emt 0:00:35]} 64. Kg3 {[%emt 0:00:13]} Kf7 {[%emt 0:01:31]} 65. Rh7+ {[%emt 0:00:36]} Kf6 {[%emt 0:00:15]} 66. Rh5 {[%emt 0:00:43]} Re1 {[%emt 0:00:33]} 67. Kf4 {[%emt 0:01:10]} Rf1+ {[%emt 0:00:19]} 68. Ke4 {[%emt 0:00:34]} Ke7 {[%emt 0:00:28]} 69. Rh6 {[%emt 0:00:32]} Re1+ {[%emt 0:00:17]} 70. Kf3 {[%emt 0:00:18]} Rf1+ {[%emt 0:00:35]} 71. Kg4 {[%emt 0:00:04]} Rg1+ {[%emt 0:00:44]} 72. Kh5 {[%emt 0:00:15]} Kf7 {[%emt 0:00:38]} 73. f6 {[%emt 0:00:49]} Ke6 {[%emt 0:00:46]} 74. Kh4 {[%emt 0:00:16]} Rg8 {[%emt 0:00:34]} 75. Kh5 {[%emt 0:00:34]} Rg1 {[%emt 0:00:27]} 76. Rg6 {[%emt 0:00:15]} Rf1 {[%emt 0:00:40]} 77. Kg5 {[%emt 0:00:16]} Kf7 {[%emt 0:00:44]} 78. Rg7+ {[%emt 0:01:29]} Kf8 {[%emt 0:00:17]} 79. Kg6 {[%emt 0:00:20]} Ke8 {[%emt 0:00:52]} 80. f7+ {[%emt 0:00:26]} Kf8 {[%emt 0:00:39]} 81. Rg8+ {[%emt 0:00:46]} Ke7 {[%emt 0:00:25]} 82. f8=Q+ {[%emt 0:02:15]} Rxf8 {[%emt 0:00:31]} 83. Rxf8 {[%emt 0:00:30]} Kxf8 {[%emt 0:00:16]} 1/2-1/2

[Event "CZE-ch Youth G10-G12-G14 2022"]
[Site "Luhacovice"]
[Date "2022.03.17"]
[Round "7.12"]
[White "Kozusnikova, Daniela"]
[Black "Martinkova Klara"]
[Result "1-0"]
[ECO "D00"]
[WhiteElo "1364"]
[BlackElo "1177"]
[Annotator "NA"]
[PlyCount "91"]
[EventDate "2022.03.12"]
[EventType "swiss"]
[EventCountry "CZE"]
[SourceTitle "playchess.com"]
[Source "ChessBase"]
[SourceQuality "1"]
[TimeControl "40/5400+30:1800+30"]

1. d4 {[%emt 0:00:06]} d5 {[%emt 0:00:08]} 2. Bg5 {[%emt 0:00:11]} Nc6 {[%emt 0:01:07]} 3. e3 {[%emt 0:01:08]} Nf6 {[%emt 0:00:36]} 4. Nf3 {[%emt 0:01:52]} Bf5 {[%emt 0:00:49]} 5. Bd3 {[%emt 0:00:29]} Bg6 {[%emt 0:00:32]} 6. c3 {[%emt 0:00:50]} e6 {[%emt 0:05:10]} 7. Qe2 {[%emt 0:03:59]} Be7 {[%emt 0:01:43]} 8. Nbd2 {[%emt 0:05:23]} O-O {[%emt 0:01:20]} 9. O-O {[%emt 0:02:30]} a6 {[%emt 0:09:43]} 10. c4 {[%emt 0:10:07]} Nb4 {[%emt 0:09:19]} 11. Bxg6 {[%emt 0:02:02]} hxg6 {[%emt 0:02:00]} 12. a3 {[%emt 0:03:32]} Nc6 {[%emt 0:00:27]} 13. Rac1 {[%emt 0:10:29]} Qd7 {[%emt 0:10:14]} 14. Rc2 {[%emt 0:05:35]} Rfb8 {[%emt 0:04:26]} 15. Rfc1 {[%emt 0:03:12]} Rc8 {[%emt 0:06:58]} 16. h3 {[%emt 0:04:49]} a5 {[%emt 0:07:34]} 17. Qd3 {[%emt 0:12:30]} Ra7 {[%emt 0:05:03]} 18. Nf1 {[%emt 0:05:22]} Raa8 {[%emt 0:01:53]} 19. Qe2 {[%emt 0:03:42]} Ne4 {[%emt 0:02:31]} 20. Bxe7 {[%emt 0:01:03]} Qxe7 {[%emt 0:00:49]} 21. cxd5 {[%emt 0:00:31]} exd5 {[%emt 0:00:35]} 22. N1d2 {[%emt 0:00:28]} Ra6 {[%emt 0:03:25]} 23. Qb5 {[%emt 0:01:41]} Rb6 {[%emt 0:00:45]} 24. Qxd5 {[%emt 0:01:21]} Nxd2 {[%emt 0:00:37]} 25. Rxd2 {[%emt 0:00:39]} Rd8 {[%emt 0:01:05]} 26. Qc4 {[%emt 0:00:28]} Qe4 {[%emt 0:04:20]} 27. d5 {[%emt 0:02:38]} Qxc4 {[%emt 0:01:50]} 28. Rxc4 {[%emt 0:00:05]} Ne7 {[%emt 0:00:36]} 29. Rxc7 {[%emt 0:00:31]} Nxd5 {[%emt 0:03:34]} 30. Rc5 {[%emt 0:00:45]} Rbd6 {[%emt 0:01:21]} 31. Rxa5 {[%emt 0:00:52]} Nc7 {[%emt 0:01:19]} 32. Rxd6 {[%emt 0:00:31]} Rxd6 {[%emt 0:00:12]} 33. Rc5 {[%emt 0:00:34]} Ne6 {[%emt 0:01:52]} 34. Rc8+ {[%emt 0:00:39]} Kh7 {[%emt 0:00:46]} 35. Rc4 {[%emt 0:04:11]} Rd1+ {[%emt 0:00:53]} 36. Kh2 {[%emt 0:00:16]} Rb1 {[%emt 0:00:57]} 37. Rb4 {[%emt 0:01:43]} Nd8 {[%emt 0:00:19]} 38. Rd4 {[%emt 0:01:27]} Nc6 {[%emt 0:00:24]} 39. Re4 {[%emt 0:01:40]} Rxb2 {[%emt 0:00:14]} 40. Ng5+ {[%emt 0:00:11]} Kh6 {[%emt 0:00:30]} 41. Nxf7+ {[%emt 0:30:10]} Kh5 {[%emt 0:30:19]} 42. g4+ {[%emt 0:00:41]} Kh4 {[%emt 0:00:33]} 43. g5+ {[%emt 0:00:16]} Kh5 {[%emt 0:00:11]} 44. Kg3 {[%emt 0:00:20]} Rb4 {[%emt 0:01:50]} 45. axb4 {[%emt 0:00:06]} Nxb4 {[%emt 0:01:02]} 46. Rh4# {[%emt 0:00:09]} 1-0

[Event "CZE-ch Youth G10-G12-G14 2022"]
[Site "Luhacovice"]
[Date "2022.03.17"]
[Round "7.13"]
[White "Kammova, Katerina"]
[Black "Buchtova, Viktorie"]
[Result "0-1"]
[ECO "D40"]
[WhiteElo "1376"]
[BlackElo "1464"]
[Annotator "NA"]
[PlyCount "100"]
[EventDate "2022.03.12"]
[EventType "swiss"]
[EventCountry "CZE"]
[SourceTitle "playchess.com"]
[Source "ChessBase"]
[SourceQuality "1"]
[TimeControl "40/5400+30:1800+30"]

1. d4 {[%emt 0:00:04]} Nf6 {[%emt 0:00:04]} 2. Nf3 {[%emt 0:00:06]} e6 {[%emt 0:00:04]} 3. c4 {[%emt 0:00:29]} d5 {[%emt 0:03:08]} 4. Nc3 {[%emt 0:02:14]} c5 {[%emt 0:00:30]} 5. e3 {[%emt 0:00:30]} Nc6 {[%emt 0:00:30]} 6. Be2 {[%emt 0:02:35]} b6 {[%emt 0:01:54]} 7. O-O {[%emt 0:04:40]} Bd6 {[%emt 0:02:04]} 8. b3 {[%emt 0:06:21]} O-O {[%emt 0:00:10]} 9. Qc2 {[%emt 0:10:38]} Bb7 {[%emt 0:01:47]} 10. Bb2 {[%emt 0:03:23]} a6 {[%emt 0:04:02]} 11. Rad1 {[%emt 0:03:10]} Qc7 {[%emt 0:01:57]} 12. Bd3 {[%emt 0:00:30]} Nb4 {[%emt 0:05:07]} 13. Qe2 {[%emt 0:06:20]} Nxd3 {[%emt 0:07:48]} 14. Rxd3 {[%emt 0:00:30]} dxc4 {[%emt 0:00:30]} 15. bxc4 {[%emt 0:00:54]} cxd4 {[%emt 0:02:58]} 16. Rxd4 {[%emt 0:00:49]} Bxf3 {[%emt 0:02:04]} 17. Qxf3 {[%emt 0:00:23]} Bxh2+ {[%emt 0:00:33]} 18. Kh1 {[%emt 0:00:15]} Be5 {[%emt 0:00:19]} 19. Rh4 {[%emt 0:02:59]} b5 {[%emt 0:03:26]} 20. Qe2 {[%emt 0:03:31]} b4 {[%emt 0:05:34]} 21. Na4 {[%emt 0:01:38]} Bxb2 {[%emt 0:00:54]} 22. Nxb2 {[%emt 0:00:43]} Rfd8 {[%emt 0:03:06]} 23. e4 {[%emt 0:02:07]} Rd4 {[%emt 0:01:19]} 24. Rc1 {[%emt 0:01:34]} Rad8 {[%emt 0:01:41]} 25. Rd1 {[%emt 0:09:02]} Rxd1+ {[%emt 0:02:11]} 26. Nxd1 {[%emt 0:00:21]} g5 {[%emt 0:01:37]} 27. Rh3 {[%emt 0:01:45]} Nxe4 {[%emt 0:01:35]} 28. Nb2 {[%emt 0:01:33]} Nc3 {[%emt 0:02:21]} 29. Qg4 {[%emt 0:02:17]} Qf4 {[%emt 0:01:35]} 30. Qh5 {[%emt 0:01:27]} Qf5 {[%emt 0:02:11]} 31. Rf3 {[%emt 0:02:40]} Qg6 {[%emt 0:01:25]} 32. Qxg6+ {[%emt 0:01:08]} hxg6 {[%emt 0:00:02]} 33. Rd3 {[%emt 0:00:22]} Rxd3 {[%emt 0:00:30]} 34. Nxd3 {[%emt 0:00:04]} Nxa2 {[%emt 0:00:43]} 35. c5 {[%emt 0:00:15]} Kf8 {[%emt 0:00:11]} 36. Kg1 {[%emt 0:00:49]} Ke7 {[%emt 0:00:45]} 37. Kf1 {[%emt 0:00:07]} Kd7 {[%emt 0:00:12]} 38. Ke1 {[%emt 0:00:25]} Kc6 {[%emt 0:00:05]} 39. Ne5+ {[%emt 0:00:13]} Kxc5 {[%emt 0:00:12]} 40. Nxf7 {[%emt 0:00:05]} b3 {[%emt 0:01:59]} 41. Kd2 {[%emt 0:30:12]} g4 {[%emt 0:33:07]} 42. Ne5 {[%emt 0:00:42]} Kd4 {[%emt 0:01:30]} 43. Nxg4 {[%emt 0:01:38]} Nb4 {[%emt 0:00:16]} 44. Kc1 {[%emt 0:00:55]} Kc3 {[%emt 0:00:52]} 45. Ne5 {[%emt 0:00:52]} Nd3+ {[%emt 0:00:08]} 46. Nxd3 {[%emt 0:00:14]} Kxd3 {[%emt 0:00:02]} 47. Kb2 {[%emt 0:00:06]} Ke2 {[%emt 0:00:17]} 48. Kxb3 {[%emt 0:00:22]} Kxf2 {[%emt 0:00:06]} 49. g4 {[%emt 0:00:13]} e5 {[%emt 0:00:05]} 50. Kc3 {[%emt 0:00:13]} e4 {[%emt 0:00:03]} 0-1